{"text_format":"3","workbook":"xlsx","n_sheets":2,"sheets":["Start","Salgsfaktura"],"not_rendered":{"images":2,"defined_names":1},"read":"whole","date_system":"1900"}

{"sheet":"Start","index":0,"n_rows":8,"n_cols":2,"rows_kept":8}
[null,"OM DENNE MALEN"]
[null,"Bruk denne malen til å opprette en salgsfaktura med utforming med enkle linjer."]
[null,"Fyll inn grunnleggende informasjon som firmanavn, fakturer til og lever til-detaljer."]
[null,"Skriv inn detaljene i tabeller."]
[null,"Totalen beregnes automatisk."]
[null,"Obs! "]
[null,"Flere instruksjoner finnes i kolonne A i regnearket SALGSFAKTURA. Denne teksten er skjult med hensikt. Hvis du vil fjerne teksten, velger du kolonne A og deretter SLETT. Hvis du vil vise teksten, velger du kolonne A og endrer deretter skriftfarge."]
[null,"Hvis du vil finne ut mer om tabeller, trykker du på SKIFT og deretter på F10 i en tabell. Velg alternativet TABELL, og velg deretter ALTERNATIV TEKST."]

{"sheet":"Salgsfaktura","index":1,"n_rows":44,"n_cols":8,"rows_kept":44,"merged":[[1,1,1,2],[1,3,1,7],[5,2,5,3],[6,2,6,3],[13,1,13,7],[40,1,40,4],[40,5,40,7],[42,1,42,7],[43,1,43,7]]}
[]
[{"$nulls":3},"Faktura"]
[null,"Ditt firmanavn",{"$nulls":4},"Dato:",{"$f":"TODAY()","v":"2022-05-06"}]
[null," Slagordet til firmaet her",{"$nulls":4},"Fakturanr.:","Nr."]
[{"$nulls":6},"Kunde-ID:","ID"]
[null,"Til:","Navn",null,"Send til:","Navn"]
[null,null,"Firmanavn",null,null,"Firmanavn"]
[null,null,"Gateadresse",null,null,"Gateadresse"]
[null,null,"Postnummer, poststed",null,null,"Postnummer, poststed"]
[null,null,"Telefon",null,null,"Telefon"]
[]
[null,"Selger","Stilling","Leveringsmetode","Leveringsbetingelser","Leveringsdato","Betalingsvilkår","Forfallsdato"]
[]
[]
[null,"Antall","Varenummer","Beskrivelse","Kolonne1","Enhetspris","Rabatt","Linjetotal"]
[{"$nulls":7},{"$f":"IF(SUM(B16)>0,SUM((B16*F16)-G16),\"\")","v":""}]
[{"$nulls":7},""]
[{"$nulls":7},""]
[{"$nulls":7},""]
[{"$nulls":7},""]
[{"$nulls":7},""]
[{"$nulls":7},""]
[{"$nulls":7},""]
[{"$nulls":7},""]
[{"$nulls":7},""]
[{"$nulls":7},""]
[{"$nulls":7},""]
[{"$nulls":7},""]
[{"$nulls":7},""]
[{"$nulls":7},""]
[{"$nulls":7},""]
[{"$nulls":7},""]
[{"$nulls":7},""]
[{"$nulls":7},""]
[{"$nulls":7},""]
[{"$nulls":5},"Totalrabatt",{"$f":"IF(SUM(G16:G35)>0,SUM(G16:G35),\"\")","v":""}]
[{"$nulls":6},"Delsum",{"$f":"IF(SUM(H16:H35)>0,SUM(H16:H35),\"\")","v":""}]
[{"$nulls":6},"Merverdiavgift"]
[{"$nulls":6},"Totalt",{"$f":"IF(SUM(H37)>0,SUM((H37*H38)+H37),\"\")","v":""}]
[]
[null,"Alle sjekker utstedes til ",{"$nulls":3},{"$f":"B3","v":"Ditt firmanavn"}]
[]
[null,"Takk for handelen!"]
[null,"Gateadresse, poststed, postnummer, telefon, faks, e-post"]